Cogmind - Beta 13 @@@ ROGUE MODE // 2024.03.17 @ 02:52:12 Player: Infomantis Result: Destroyed by E6-OHW(R) with Subdweller Beam Cannon Performance ------------- Evolutions (0) 0 Regions Visited (2) 400 Robots Destroyed (17) 85 Value Destroyed (420) 420 Prototype IDs (3) 60 Alien Tech Used (0) 0 Bonus (-6) -6 TOTAL SCORE: 959 Bonus ------- Friendly Fire -6 Cogmind --------- Core Integrity 0/250 Matter 300/300 Energy 35/125 System Corruption 1% Temperature Hot (251) Movement Treading (160) Location -10/Subcaves Parts ------- > --- POWER (1) -------- Light Ion Engine > --- PROPULSION (2) --- Light Treads Light Treads > --- UTILITY (2) ------ Scrap Shield > --- WEAPON (2) ------- Beamcaster Beamcaster > --- INVENTORY (5) ---- Light Treads Myomer Leg Cobbler Unit Mining Laser Peak State ------------ > --- POWER ------------ Subdweller Power Source > --- PROPULSION ------- Light Treads Light Treads > --- UTILITY ---------- Large Storage Unit Sensor Array > --- WEAPON ----------- Beamcaster Beamcaster > --- INVENTORY -------- Light Ion Engine Light Treads Light Treads Light Treads Light Treads Light Treads Carbon-fiber Leg Carbon-fiber Leg Myomer Leg Compact Wheel Seismic Detector EM Pulse Gun Datajack Mining Laser [Rating: 18] Favorites ----------- Power Ion Engine Engine Ion Engine Propulsion Light Treads Treads Light Treads Utility Large Storage Unit Device Seismic Detector Storage Large Storage Unit Protection Scrap Shield Weapon Beamcaster Energy Gun Beamcaster Energy Cannon Subdweller Beam Cannon Ballistic Gun Light Assault Rifle Ballistic Cannon Bore Cannon Special Weapon Mining Laser Build | -11 -10 -10 ------- Run | Yrd Mat Sub Slots Evolved . | . . . Power . | . . . Propulsion . | . . . Utility . | . . . Weapon . | . . . Parts Attached 27 | 7 5 15 Power 3 | 1 . 2 Engine 3 | 1 . 2 Core . | . . . Reactor . | . . . Propulsion 5 | 2 . 3 Treads 5 | 2 . 3 Leg . | . . . Wheel . | . . . Hover . | . . . Flight . | . . . Utility 7 | 2 1 4 Device 2 | 1 . 1 Storage 3 | 1 1 1 Processor . | . . . Hackware . | . . . Protection 2 | . . 2 Artifact . | . . . Weapon 12 | 2 4 6 Energy Gun 6 | 1 2 3 Energy Cannon 1 | . . 1 Ballistic Gun 3 | 1 1 1 Ballistic Cannon 1 | . . 1 Launcher . | . . . Special Weapon 1 | . 1 . Impact Weapon . | . . . Slashing Weapon . | . . . Piercing Weapon . | . . . Special Melee Weapon . | . . . Unidentified Prototypes . | . . . Parts Lost 3 | . . 3 Power 1 | . . 1 Propulsion . | . . . Utility 1 | . . 1 Weapon 1 | . . 1 Highest Loss Streak 2 | . . 2 To Critical Strikes . | . . . Average Slot Usage (%) 88 | . 100 82 Engine 12 | . 14 11 Treads 28 | . 28 28 Device 7 | . 14 3 Storage 8 | . 14 5 Protection 4 | . . 6 Energy Gun 18 | . 14 20 Energy Cannon 1 | . . 1 Ballistic Gun 6 | . 13 2 Naked Turns . | . . . Heaviest Build 36 | 14 29 36 Greatest Support 40 | 40 40 40 Greatest Overweight (x) . | . . . Average Overweight (x) . | . . . Largest Inventory Capacity 15 | 8 15 15 Average Capacity 9 | 7 12 8 Most Carried 15 | 8 15 15 Average Carried 9 | 5 11 8 Final Capacity 15 | 8 15 5 Final Carried 15 | 8 15 5 Class Distribution -------------------- 95% | Mutant 4% | Subdweller-Mutant Dominant Class ---------------- Mutant | -10/Materials Mutant | -10/Subcaves Resources | -11 -10 -10 ----------- Run | Yrd Mat Sub Matter Collected 544 | 232 89 223 Remotely . | . . . Salvage Created 607 | 77 105 425 Parts 46 | 12 11 23 Haulers Intercepted 1 | . 1 . Recyclers Shooed 1 | 1 . . Parts Field Recycled . | . . . Retrieved Matter . | . . . Parts Self-Destructed 17 | . . 17 Prevented . | . . . Kills | -11 -10 -10 ------- Run | Yrd Mat Sub Combat Hostiles Destroyed 12 | . 3 9 Guns 7 | . 3 4 Cannons 5 | . . 5 Classes Destroyed 5 | 1 2 2 Tunneler 4 | 4 . . Hauler 1 | . 1 . Swarmer 3 | . 3 . Cobbler 1 | . . 1 Subdweller 9 | . . 9 Best Kill Streak 4 | 2 3 4 Combat Bots Only 4 | . 3 4 Max Kills in Single Turn 1 | 1 1 1 Gunslinging . | . . . Exploded . | . . . Melee . | . . . Uniques/NPCs Destroyed . | . . . Combat | -11 -10 -10 -------- Run | Yrd Mat Sub Hostile Shots Fired 58 | . 10 48 Missed 9 | . 3 6 Damage Taken 1274 | . 54 1220 Core 260 | . 16 244 Absorbed by Shields . | . . . Core Remaining (%) 100 | 100 . . Volleys Fired 85 | 25 9 51 Largest 2 | 2 2 2 Hottest 150 | 60 100 150 Shots Fired 116 | 26 15 75 Gun 89 | 26 12 51 Cannon 24 | . . 24 Launcher . | . . . Special 3 | . 3 . Kinetic 40 | 25 6 9 Thermal 75 | . 9 66 Explosive . | . . . Electromagnetic 1 | 1 . . Robot Hit Streak 20 | 5 7 20 Robot Miss Streak 2 | 2 1 2 Penetration Max . | . . . Secondary Targets . | . . . Shots Hit Robots 83 | 19 8 56 Core Hits 28 | 8 5 15 Critical Kills 2 | 1 . 1 Critical Parts Destroyed . | . . . Critical Strikes 5 | 1 . 4 Burn 2 | . . 2 Destroy 3 | 1 . 2 Melee Attacks . | . . . Impact . | . . . Slashing . | . . . Piercing . | . . . Sneak Attacks . | . . . Combat Hostiles . | . . . Follow-up Attacks . | . . . Damage Inflicted 1412 | 173 84 1155 Guns 1024 | 173 84 767 Cannons 388 | . . 388 Explosions . | . . . Melee . | . . . Ramming . | . . . Kinetic 298 | 161 35 102 Thermal 1102 | . 49 1053 Explosive . | . . . Electromagnetic 12 | 12 . . Impact . | . . . Slashing . | . . . Piercing . | . . . Highest Corruption 1 | . . 1 Average Corruption 1 | . . 1 Corruption Purged . | . . . Corruption Blocked . | . . . Effects 3 | . . 3 Matter Fused 1 | . . 1 Data Loss (minor) 1 | . . 1 Data Loss (major) 1 | . . 1 Overload Shots . | . . . Overflow Damage . | . . . Projectiles . | . . . Explosions . | . . . Melee . | . . . Knockbacks 1 | . . 1 Impact . | . . . Kinetic 1 | . . 1 Secondary . | . . . Self-Inflicted Damage . | . . . Shots . | . . . Rammed . | . . . Targets Rammed . | . . . Kicked . | . . . Crushed . | . . . Highest Temperature 303 | 20 70 303 Average Temperature 57 | 15 22 73 Received Heat Transfer 141 | . . 141 Siege Activations . | . . . Robots Corrupted . | . . . Combat Hostiles . | . . . Parts Fried . | . . . Impact Corruptions . | . . . Robots Melted . | . . . Combat Hostiles . | . . . Parts Melted 3 | . . 3 Heat Transferred 2072 | . 148 1924 Parts Sabotaged . | . . . Parts Stolen . | . . . Parts Stripped . | . . . Power Chain Reactions . | . . . Alert | -11 -10 -10 ------- Run | Yrd Mat Sub Peak Influence 128 | 20 128 . Initial 13 | . 13 . Average 46 | 8 61 . Maximum Alert Level . | . . . Low Security (%) 100 | 100 100 . Level 1 . | . . . Level 2 . | . . . Level 3 . | . . . Level 4 . | . . . Level 5 . | . . . High Security . | . . . Max Security . | . . . Squads Dispatched 1 | . 1 . Investigation . | . . . Extermination . | . . . Reinforcement 1 | . 1 . Assault . | . . . Garrison . | . . . Intercept . | . . . Searches Triggered . | . . . Construction Impeded . | . . . Haulers Reinforced . | . . . Active Scanning Responses . | . . . Cargo Convoy Interrupts . | . . . Stealth | -11 -10 -10 --------- Run | Yrd Mat Sub Distress Signals . | . . . Communications Jammed . | . . . Distress Signals . | . . . Times Spotted 20 | . 7 13 Peak Tracking Total 6 | . 3 6 Tactical Retreats 2 | . 1 1 Traps | -11 -10 -10 ------- Run | Yrd Mat Sub Traps Triggered . | . . . Indirectly . | . . . Trap Hack Attempts . | . . . Triggered . | . . . Disarmed . | . . . Reprogrammed . | . . . Reused . | . . . Traps Extracted . | . . . Installed . | . . . Triggered . | . . . Machines | -11 -10 -10 ---------- Run | Yrd Mat Sub Machines Disabled . | . . . Max in Single Turn . | . . . Machines Repaired . | . . . Machines Dismantled . | . . . Machines Sabotaged . | . . . Overloaded Fab Kills . | . . . Hacking | -11 -10 -10 --------- Run | Yrd Mat Sub Machines Accessed 3 | . 3 . Terminals 3 | . 3 . Fabricators . | . . . Repair Stations . | . . . Recycling Units . | . . . Scanalyzers . | . . . Garrison Access . | . . . Total Hacks 7 | . 7 . Successful 4 | . 4 . Failed 3 | . 3 . Catastrophic 2 | . 2 . Database Lockouts . | . . . Manual 4 | . 4 . Terminals 7 | . 7 . Fabricators . | . . . Repair Stations . | . . . Recycling Units . | . . . Scanalyzers . | . . . Garrison Access . | . . . Terminal Hacks 4 | . 4 . Robot Analysis 1 | . 1 . Prototype ID Bank 2 | . 2 . Locate Traps 1 | . 1 . Fabricator Hacks . | . . . Repair Station Hacks . | . . . Recycling Unit Hacks . | . . . Scanalyzer . | . . . Garrison Access Hacks . | . . . Unauthorized Hacks . | . . . Terminals . | . . . Fabricators . | . . . Repair Stations . | . . . Recycling Units . | . . . Scanalyzers . | . . . Garrison Access . | . . . Data Cores Recovered . | . . . Used . | . . . Hacking Detections 2 | . 2 . Full Trace Events . | . . . Feedback Events . | . . . Feedback Blocked . | . . . Robot Schematics Acquired . | . . . Robots Built . | . . . Authchips . | . . . Time . | . . . Total Robot Build Rating . | . . . Part Schematics Acquired . | . . . Parts Built . | . . . Authchips . | . . . Time . | . . . Total Part Build Rating . | . . . Parts Repaired . | . . . Time . | . . . Parts Recycled . | . . . Recycled Matter . | . . . Retrieved Matter . | . . . Retrieved Components . | . . . Parts Scanalyzed . | . . . Part Schematics Acquired . | . . . Parts Damaged . | . . . Bothacking | -11 -10 -10 ------------ Run | Yrd Mat Sub Used RIF Installer . | . . . Robots Hacked . | . . . Non-combat . | . . . Combat . | . . . Robot Hacks Applied . | . . . Relay Couplers Released . | . . . Fabnet Peak Effective % . | . . . Robots Rewired . | . . . Allies Hacked . | . . . Hacks Repelled . | . . . Allies | -11 -10 -10 -------- Run | Yrd Mat Sub Total Allies . | . . . Largest Group . | . . . Highest-Rated Group . | . . . Highest-Rated Ally . | . . . Total Orders . | . . . Ally Attacks . | . . . Total Damage . | . . . Kills . | . . . Allies Corrupted . | . . . Allies Melted . | . . . Intel | -11 -10 -10 ------- Run | Yrd Mat Sub Robot Analysis Total 1 | . 1 . Derelict Logs Recovered . | . . . Drone Launches . | . . . Drone Recoveries . | . . . Exploration | -11 -10 -10 ------------- Run | Yrd Mat Sub Turns Passed 1709 | 198 515 996 Spaces Moved 867 | 85 287 495 Core 2 | 2 . . Treads 865 | 83 287 495 Legs . | . . . Wheels . | . . . Hover . | . . . Flight . | . . . Fastest Speed 50 | 50 160 160 Average Speed 159 | 157 160 160 Slowest Speed 160 | 160 160 160 Overloaded Moves . | . . . Propulsion Burnouts . | . . . Robots Hopped . | . . . Cave-ins Triggered 1 | . . 1 Exploration Rate (%) 24 | 6 42 24 Regions Visited 2 Branch Regions 1 Pre-discovered Areas . | . . . Known Exits Taken . | . . . Unknown Exits Taken 2 | 1 1 . Scrap Searched 4 | . . 4 Spaces Dug . | . . . Terrain Destroyed 2 | . . 2 Melee . | . . . Projectile 2 | . . 2 AOE . | . . . Terrain Rammed . | . . . Walls Destroyed . | . . . Machines Disabled . | . . . Actions | -11 -10 -10 --------- Run | Yrd Mat Sub Total 1079 | 125 324 630 Wait 37 | 1 8 28 Move 865 | 84 286 495 Hop . | . . . Pick Up 39 | 8 11 20 Fast Attach 16 | 7 . 9 Attach 2 | . . 2 Detach . | . . . Swap 9 | . 5 4 Drop 25 | . 5 20 Fire 85 | 25 9 51 Melee . | . . . Ram . | . . . Kick . | . . . Crush . | . . . Escape Stasis . | . . . Rewire . | . . . Trap . | . . . Miscellaneous 1 | . . 1 Route ------- -11/Scrapyard -10/Materials (discovered 3 exits: [*Mat] / [*Min] / [*Sub]) -10/Subcaves History --------- Turn | Location | Event 12 | -11/Scrapyard | Discovered new exit (range 14) 199 | -11/Scrapyard | Entered Materials 326 | -10/Materials | Build established: Mutant 476 | -10/Materials | Discovered new exit (range 9) 485 | -10/Materials | Discovered new exit (range 16) 710 | -10/Materials | Discovered new exit (range 2) 714 | -10/Materials | Entered Subcaves 867 | -10/Subcaves | Ambushed by swarm of Subdwellers 912 | -10/Subcaves | Lost 4 allies 950 | -10/Subcaves | Crushed by falling debris 950 | -10/Subcaves | Core integrity fell below 50% 1286 | -10/Subcaves | Core integrity fell below 20% 1710 | -10/Subcaves | Destroyed by E6-OHW(R) with Subdweller Beam Cannon Last Messages --------------- 01411_ Dropped Sensor Array. 01412_ Dropped Lrg. Storage Unit. 01412_ Acquired Scrap Shield. 01415_ Dropped Seismic Detector. 01416_ Acquired Myomer Leg. 01417_ Dropped EM Pulse Gun. 01419_ Acquired Carbon-fiber Leg. 01423_ Dropped Datajack. 01424_ Acquired Mining Laser. 01434_ Acquired 13 matter. 01556_ K5-1PK(O) cries out in pain. 01556_ K5-1PK(O) destroyed. 01559_ Acquired 16 matter. 01562_ Dropped Carbon-fiber Leg. 01562_ Dropped Lgt. Treads. 01563_ Acquired Cobbler Unit. 01606_ System corrupted: Substantial component data lost. 01701_ Destroyed Scrap Shield. 01704_ IO-AMX(R) destroyed. Map ----- +----------------------------------------------------+ | ?????????????????????????????# ##??## #?????? | | ?????????????????????????????# #### ##?????? | | ?????????????????????????????# ## ##??????# | | ?????????????????????????????# ###??????## | | ?????????????????????????????# ######??## | | ?????????????????????????????# ## ## ##?# | | ?????????????????????????????# ### %### | | ?????????????????????????????# ###?### % %*% | | ?????????????????????????????####?????# ##& | | ??????????????????????????????????????#### #### | | ?????????????????????????????????????????######?## | | ???????????????????????????????????????????????## | | ???????????????????????????????????????????????# | | ??????????????????????????????????? ???????????## | | ?????????????????????????????????? ???????????## | | ????????????????????????????????# ??????????# | | ?????????????????????????##???? ???????????### | | ????????????????????????? #??? ??????????????## | | ????????????????????????? ##?# ???????????????# | | ????????????????????????? ## ????????????????# | | ????????????????????????? ??????????????????## | | ???????????????????????## ????????????????????# | | ??????????????????????## ?????????????????????? | | ?????????????????????## [ #?????????????????##???# | | ?????????????????????# &R##????????????????## #?## | | ?????????????????????## !@#????????????????# ## | | ??????????????????????# #?????????????????# | | ?????????????????????## ##?????????????????## | | ?????????????????????# ###????????????????# | | ?????????????????????## ####?????????????# | | ??????????????????????# #?????????????# | | ?????????????????????## #???????????# ## | | ??????????????????#### #??????????# ?## | | ??????????????????# #??????????# ??## | | ??????????????????# #?###?????# ?## | | ??????????????????# # ## # ?## | | ??????????????????# ??# | | ??????????????????# ???## | | ?????????????????# ## # ### ## # ????# | | ?????????????? #### ###??###???????????# | | ?????????????" ???# ##?????###????????## | | ?????????????# ## ???# ###??## ??????## | | ?????????????## #?###??## ##?# ????## | | ??????????????##??###### ##? ???## ## | | ??????????????????# ## | #??# ?### ##? | | ??????????????????# #???# ##!* #?# | | ??????????????????# = ##??## / ! =* ### | | ?????????????????## ]% ##??# ===[!###% | | ?????????????????# == #??# = ## | | ?????????????????# ## ######??## | +----------------------------------------------------+ Best States ------------- Heat Dissipation 25 Energy Generation 10 Energy Capacity 250 Matter Stores 300 Matter Capacity 300 Sight Range 16 Robot Scan Range 14 Terrain Scan Density 10 Armor Coverage 800 Evasion (%) 40 Recoil Reduction 2 Item Schematics ----------------- None Robot Schematics ------------------ None Fabricated ------------ Nothing Alien Tech Used ----------------- None Achievements -------------- None Challenges ------------ None Game ------ Seed WeldingNavigationCanceller Manual? 0 Play Time 00:12:01 Cumulative 382.2 hours Start 2024.03.17 @ 02:40:50 End 2024.03.17 @ 02:52:12 Sessions 1 Manual Loads 0 Difficulty Rogue Special Mode None Game No. 251 Rogue 228 Adventurer 6 Explorer 17 Win Type - Total 29 Types 21/0/4/1/0/1/1/1/0 Lore% 92 Gallery% 95 Achievement% 79 Wizard Run 0 Options --------- Layout 1 ASCII 0 Keyboard 0 Movement Numpad Keybinds 0 Fullscreen 1 Font 16/TamsynBold Map View 55x38 Zoom Use 0% Tactical HUD 1 Map Filters NONE Filters NONE Steam 1 RUN: bc401a88-4bca-45c2-8ee8-0e905e781b41